lending/lending_fUSD_20240721
["ID","MTS","AMOUNT","RATE_DAILY","PERIOD"]
[332834864,1721562421441,-500.0,0.00043835,60]
[332834865,1721562421474,-1946.7,0.00043835,60]
[332834866,1721562421505,-500.0,0.00043835,60]
[332834867,1721562421541,-976.36,0.00043835,60]
[332834868,1721562421574,-1926.96,0.00043835,60]
[332834869,1721562421608,-500.0,0.00043835,60]
[332834870,1721562421640,-500.0,0.00043835,60]
[332834871,1721562421673,-1035.15,0.00043835,60]
[332834872,1721562421704,-501.55461996,0.00043835,60]
[332834873,1721562421735,-500.0,0.00043835,60]
[332834874,1721562421764,-689.13019516,0.00043835,15]
[332834875,1721562421793,-1557.66,0.00043835,60]
[332834876,1721562421823,-500.0,0.00043835,60]
[332834877,1721562421853,-500.0,0.00043835,60]
[332834878,1721562421884,-500.0,0.00043835,60]
[332834879,1721562421915,-500.0,0.00043835,60]
[332834880,1721562421950,-1158.49,0.00043835,60]
[332834881,1721562421982,-500.0,0.00043835,60]
[332834882,1721562422012,-991.73,0.00043835,60]
[332834883,1721562422046,-500.0,0.00043835,60]
[332834884,1721562422080,-500.0,0.00043835,60]
[332834885,1721562422116,-2557.51,0.00043835,60]
[332834886,1721562422153,-2269.25,0.00043835,60]
[332834887,1721562422188,-765.24,0.00043835,60]
[332834888,1721562422222,-500.0,0.00043835,60]
[332834889,1721562422470,-500.0,0.00043835,60]
[332834890,1721562422506,-500.0,0.00043835,60]
[332834891,1721562422540,-500.0,0.00043835,60]
[332834892,1721562422572,-1069.04,0.00043835,60]
[332834893,1721562422603,-500.0,0.00043835,60]
[332834894,1721562422633,-509.72,0.00043835,60]
[332834895,1721562422664,-500.0,0.00043835,60]
[332834896,1721562422697,-1450.95,0.00043835,60]
[332834897,1721562422728,-592.71427663,0.00043835,60]
[332834898,1721562422760,-370.21607537,0.00043835,60]
[332834899,1721562422791,-500.0,0.00043835,60]
[332834900,1721562422823,-11013.47,0.00043835,60]
[332834901,1721562422855,-3431.18,0.00043835,60]
[332834902,1721562422889,-500.0,0.00043835,60]
[332834903,1721562422925,-500.0,0.00044109,60]
[332834904,1721562422961,-500.0,0.00044109,60]
[332834905,1721562422997,-1210.42,0.00044109,60]
[332834906,1721562423041,-500.0,0.00044109,60]
[332834907,1721562423076,-1298.71,0.00044109,60]
[332834908,1721562423113,-1397.0,0.00044109,60]
[332834909,1721562423153,-2870.38,0.00044109,60]
[332834910,1721562423187,-1090.78,0.00044109,60]
[332834911,1721562423223,-500.0,0.00044109,60]
[332834912,1721562423258,-500.0,0.00044109,60]
[332834913,1721562423293,-500.0,0.00044109,60]
[332834914,1721562423327,-975.35,0.00044109,60]
[332834915,1721562423360,-500.0,0.00044109,60]
[332834916,1721562423394,-975.06,0.00044109,60]
[332834917,1721562423427,-588.03,0.00044109,60]
[332834918,1721562423462,-3219.97,0.00044109,60]
[332834919,1721562423495,-500.0,0.00044109,60]
[332834920,1721562423529,-1233.64,0.00044109,60]
[332834921,1721562423565,-500.0,0.00044109,60]
[332834922,1721562423600,-500.0,0.00044109,60]
[332834923,1721562423637,-4349.87,0.00044109,60]
[332834924,1721562423672,-897.27,0.00044109,60]
[332834925,1721562423707,-500.0,0.00044109,60]
[332834926,1721562423743,-500.0,0.00044109,60]
[332834927,1721562423779,-779.84,0.00044109,60]
[332834928,1721562423816,-2831.42,0.00044109,60]
[332834929,1721562423854,-500.0,0.00044109,60]
[332834930,1721562423891,-5862.38,0.00044109,21]
[332834931,1721562423929,-500.0,0.00044109,60]
[332834932,1721562423966,-797.05,0.00044109,60]
[332834933,1721562424001,-468.83128575,0.00044109,60]
[332834934,1721562424036,-1449.32,0.00044109,60]
[332834935,1721562424072,-150.0,0.00044109,60]
[332834936,1721562424108,-611.71,0.00044109,60]
[332834937,1721562424148,-500.0,0.00044109,60]
[332834938,1721562424183,-500.0,0.00044109,60]
[332834939,1721562424219,-2307.85,0.00044109,60]
[332834940,1721562424253,-1220.31,0.00044109,60]
[332834941,1721562424289,-1547.85,0.00044109,60]
[332834942,1721562424325,-1404.45,0.00044109,60]
[332834943,1721562424357,-500.0,0.00044109,60]
[332834944,1721562424391,-500.0,0.00044109,60]
[332834945,1721562424424,-500.0,0.00044109,60]
[332834946,1721562424456,-500.0,0.00044109,60]
[332834947,1721562424491,-2145.84,0.00044109,60]
[332834948,1721562424523,-500.0,0.00044109,60]
[332834949,1721562424558,-500.0,0.00044109,60]
[332834950,1721562424593,-500.0,0.00044109,60]
[332834951,1721562424629,-500.0,0.00044109,60]
[332834952,1721562424662,-771.19,0.00044109,60]
[332834953,1721562424694,-558.3,0.00044109,60]
[332834954,1721562424727,-2587.27,0.00044109,60]
[332834955,1721562424760,-892.89,0.00044109,60]
[332834956,1721562424794,-1698.04,0.00044109,60]
[332834957,1721562424828,-500.0,0.00044109,60]
[332834958,1721562424864,-4298.51,0.00044109,60]
[332834959,1721562424902,-1673.38,0.00044109,60]
[332834960,1721562424938,-755.63,0.00044109,60]
[332834961,1721562424979,-500.0,0.00044109,60]
[332834962,1721562425016,-500.0,0.00044109,60]
[332834963,1721562425058,-500.0,0.00044109,60]
[332834964,1721562425094,-1946.7,0.00044109,60]
[332834965,1721562425130,-500.0,0.00044109,60]
[332834966,1721562425164,-976.36,0.00044109,60]
[332834967,1721562425198,-1926.96,0.00044109,60]
[332834968,1721562425232,-500.0,0.00044109,60]
[332834969,1721562425268,-578.01721681,0.00044109,60]
[332834970,1721562425301,-1035.15,0.00044109,60]
[332834971,1721562425334,-500.0,0.00044109,60]
[332834972,1721562425368,-1557.66,0.00044109,60]
[332834973,1721562425402,-500.0,0.00044109,60]
[332834974,1721562425438,-500.0,0.00044109,60]
[332834975,1721562425478,-500.0,0.00044109,60]
[332834976,1721562425511,-500.0,0.00044109,60]
[332834977,1721562425546,-1158.49,0.00044109,60]
[332834978,1721562425580,-500.0,0.00044109,60]
[332834979,1721562425613,-991.73,0.00044109,60]
[332834980,1721562425648,-500.0,0.00044109,60]
[332834981,1721562425683,-500.0,0.00044109,60]
[332834982,1721562425717,-2557.51,0.00044109,60]
[332834983,1721562425752,-2269.25,0.00044109,60]
[332834984,1721562425785,-765.24,0.00044109,60]
[332834985,1721562425817,-500.0,0.00044109,60]
[332834986,1721562425851,-500.0,0.00044109,60]
[332834987,1721562425886,-500.0,0.00044109,60]
[332834988,1721562425920,-500.0,0.00044109,60]
[332834989,1721562425954,-1069.04,0.00044109,60]
[332834990,1721562425990,-555.34440692,0.00044109,60]
[332834991,1721562426026,-509.72,0.00044109,60]
[332834992,1721562426065,-533.65459629,0.00044109,60]
[332834993,1721562426098,-301.019,0.00044109,30]
[332834994,1721562426330,-1450.95,0.00044109,60]
[332834995,1721562426365,-500.0,0.00044109,60]
[332834996,1721562426400,-11013.47,0.00044109,60]
[332834997,1721562426432,-3431.18,0.00044109,60]
[332834998,1721562426464,-534.4828263,0.00044109,60]
[332834999,1721562426499,-2010.51024835,0.000442,120]
[332835000,1721562426533,-2010.51024832,0.000442,120]
[332835001,1721562426567,-2010.51024832,0.000442,120]
[332835002,1721562426599,-2010.51024832,0.000442,120]
[332835003,1721562426634,-2010.51024832,0.000442,120]
[332835004,1721562426668,-500.0,0.00044383,60]
[332835005,1721562426704,-500.0,0.00044383,60]
[332835006,1721562426737,-728.0,0.00044383,60]
[332835007,1721562426771,-458.24,0.00044383,60]
[332835008,1721562426805,-833.33,0.00044383,30]
[332835009,1721562426839,-3000.0,0.00044383,120]
[332835010,1721562426872,-256.45106079,0.00044383,60]
[332835011,1721562426907,-500.0,0.00044383,60]
[332835012,1721562426942,-500.0,0.00044383,60]
[332835013,1721562426978,-500.0,0.00044383,60]
[332835014,1721562427015,-500.0,0.00044383,60]
[332835015,1721562427054,-500.0,0.00044383,60]
[332835016,1721562427090,-500.0,0.00044383,60]
[332835017,1721562427128,-500.0,0.00044383,60]
[332835018,1721562427162,-500.0,0.00044383,60]
[332835019,1721562427196,-500.0,0.00044383,60]
[332835020,1721562427235,-500.0,0.00044383,60]
[332835021,1721562427270,-500.0,0.00044383,60]
[332835022,1721562427303,-500.0,0.00044383,60]
[332835023,1721562427335,-500.0,0.00044383,60]
[332835024,1721562427366,-500.0,0.00044383,60]
[332835025,1721562427400,-500.0,0.00044383,60]
[332835026,1721562427433,-500.0,0.00044383,60]
[332835027,1721562427467,-500.0,0.00044383,60]
[332835028,1721562427500,-500.0,0.00044383,60]
[332835029,1721562427532,-500.0,0.00044383,60]
[332835030,1721562427566,-500.0,0.00044383,60]
[332835031,1721562427598,-500.0,0.00044383,60]
[332835032,1721562427630,-500.0,0.00044383,60]
[332835033,1721562427662,-500.0,0.00044383,60]
[332835034,1721562427692,-501.34870503,0.00044383,60]
[332835035,1721562427724,-500.0,0.00044383,60]
[332835036,1721562427762,-500.0,0.00044383,60]
[332835037,1721562427793,-501.11265976,0.00044383,60]
[332835038,1721562427824,-500.0,0.00044383,60]
[332835039,1721562427858,-500.0,0.00044383,60]
[332835040,1721562427890,-500.0,0.00044383,60]
[332835041,1721562427923,-500.0,0.00044383,60]
[332835042,1721562427955,-500.0,0.00044383,60]
[332835043,1721562427988,-500.0,0.00044383,60]
[332835044,1721562428019,-500.0,0.00044383,60]
[332835045,1721562428053,-171.17551742,0.00044383,60]
[332835046,1721562428084,-500.0,0.00044383,60]
[332835047,1721562428116,-501.6109245,0.00044383,60]
[332835048,1721562428147,-1049.68,0.00044383,60]
[332835049,1721562428178,-500.0,0.00044383,60]
[332835050,1721562428211,-500.0,0.00044383,60]
[332835051,1721562428244,-500.0,0.00044383,60]
[332835052,1721562428275,-500.0,0.00044383,60]
[332835053,1721562428305,-500.0,0.00044383,60]
[332835054,1721562428338,-500.0,0.00044383,60]
[332835055,1721562428368,-500.0,0.00044383,60]
[332835056,1721562428398,-500.0,0.00044383,60]
[332835057,1721562428428,-596.0,0.00044383,60]
[332835058,1721562428460,-500.0,0.00044383,60]
[332835059,1721562428489,-500.0,0.00044383,60]
[332835060,1721562428519,-500.0,0.00044383,60]
[332835061,1721562428551,-500.0,0.00044383,60]
[332835062,1721562428581,-500.0,0.00044383,60]
[332835063,1721562428612,-500.0,0.00044383,60]
[332835064,1721562428642,-500.0,0.00044383,60]
[332835065,1721562428675,-500.0,0.00044383,60]
[332835066,1721562428708,-500.0,0.00044383,60]
[332835067,1721562428740,-500.0,0.00044383,60]
[332835068,1721562428770,-500.0,0.00044383,60]
[332835069,1721562428802,-500.0,0.00044383,60]
[332835070,1721562428834,-500.0,0.00044383,60]
[332835071,1721562428868,-500.0,0.00044383,60]
[332835072,1721562428902,-500.0,0.00044383,60]
[332835073,1721562428936,-500.0,0.00044383,60]
[332835074,1721562428971,-500.0,0.00044383,60]
[332835075,1721562429003,-627.21,0.00044383,60]
[332835076,1721562429036,-500.0,0.00044383,60]
[332835077,1721562429068,-500.0,0.00044383,60]
[332835078,1721562429104,-583.69,0.00044383,60]
[332835079,1721562429136,-500.0,0.00044383,60]
[332835080,1721562429169,-500.0,0.00044383,60]
[332835081,1721562429200,-500.0,0.00044383,60]
[332835082,1721562429231,-500.0,0.00044383,60]
[332835083,1721562429262,-500.0,0.00044383,60]
[332835084,1721562429292,-500.0,0.00044383,60]
[332835085,1721562429323,-1086.76,0.00044383,60]
[332835086,1721562429353,-500.0,0.00044383,60]
[332835087,1721562429384,-1232.08,0.00044383,60]
[332835088,1721562429414,-500.0,0.00044383,60]
[332835089,1721562429445,-512.41073317,0.00044383,60]
[332835090,1721562429475,-500.0,0.00044383,60]
[332835091,1721562429508,-906.24,0.00044383,60]
[332835092,1721562429544,-500.0,0.00044383,60]
[332835093,1721562429577,-1235.37,0.00044383,60]
[332835094,1721562429608,-500.0,0.00044383,60]
[332835095,1721562429639,-1269.86,0.00044383,60]
[332835096,1721562429672,-500.0,0.00044383,60]
[332835097,1721562429880,-500.0,0.00044383,60]
[332835098,1721562429945,-500.0,0.00044383,60]
[332835099,1721562429979,-200.0,0.00044383,60]
[332835100,1721562430012,-500.0,0.00044383,60]
[332835101,1721562430046,-500.0,0.00044383,60]
[332835102,1721562430080,-500.0,0.00044383,60]
[332835103,1721562430115,-500.0,0.00044383,60]
[332835104,1721562430151,-500.0,0.00044383,60]
[332835105,1721562430185,-514.86,0.00044383,60]
[332835106,1721562430219,-500.0,0.00044383,60]
[332835107,1721562430251,-573.37,0.00044383,60]
[332835108,1721562430284,-500.0,0.00044383,60]
[332835109,1721562430317,-1000.0,0.00044383,60]
[332835110,1721562430349,-500.0,0.00044383,60]
[332835111,1721562430385,-724.14,0.00044383,60]
[332835112,1721562430420,-644.44,0.00044383,60]
[332835113,1721562430453,-500.0,0.00044383,60]
[332835114,1721562430491,-500.0,0.00044383,60]
[332835115,1721562430528,-500.0,0.00044383,60]
[332835116,1721562430563,-604.49,0.00044383,60]
[332835117,1721562430597,-500.0,0.00044383,60]
[332835118,1721562430633,-556.68,0.00044383,60]
[332835119,1721562430668,-505.51497434,0.00044383,60]
[332835120,1721562430702,-500.0,0.00044383,60]
[332835121,1721562430736,-502.88011811,0.00044383,60]
[332835122,1721562430771,-500.0,0.00044383,60]
[332835123,1721562430804,-500.0,0.00044383,60]
[332835124,1721562430837,-777.65,0.00044383,60]
[332835125,1721562430871,-761.21,0.00044383,60]
[332835126,1721562430908,-500.0,0.00044383,60]
[332835127,1721562430945,-500.0,0.00044383,60]
[332835128,1721562430982,-500.0,0.00044383,60]
[332835129,1721562431017,-1228.36,0.00044383,60]
[332835130,1721562431056,-500.0,0.00044383,60]
[332835131,1721562431092,-580.68,0.00044383,60]
[332835132,1721562431129,-500.0,0.00044383,60]
[332835133,1721562431164,-503.82430597,0.00044383,60]
[332835134,1721562431198,-500.0,0.00044383,60]
[332835135,1721562431234,-500.0,0.00044383,60]
[332835136,1721562431268,-500.0,0.00044383,60]
[332835137,1721562431302,-500.0,0.00044383,60]
[332835138,1721562431336,-500.0,0.00044383,60]
[332835139,1721562431369,-500.0,0.00044383,60]
[332835140,1721562431403,-500.0,0.00044383,60]
[332835141,1721562431437,-688.11,0.00044383,60]
[332835142,1721562431470,-500.0,0.00044383,60]
[332835143,1721562431502,-500.0,0.00044383,60]
[332835144,1721562431536,-500.0,0.00044383,60]
[332835145,1721562431569,-1135.36,0.00044383,60]
[332835146,1721562431601,-1179.49,0.00044383,60]
[332835147,1721562431634,-500.0,0.00044383,60]
[332835148,1721562431666,-500.0,0.00044383,60]
[332835149,1721562431698,-945.04,0.00044383,60]
[332835150,1721562431734,-587.66,0.00044383,60]
[332835151,1721562431769,-500.0,0.00044383,60]
[332835152,1721562431806,-500.0,0.00044383,60]
[332835153,1721562431839,-500.0,0.00044383,60]
[332835154,1721562431875,-500.0,0.00044383,60]
[332835155,1721562431912,-775.44,0.00044383,60]
[332835156,1721562431945,-500.0,0.00044383,60]
[332835157,1721562431980,-748.56,0.00044383,60]
[332835158,1721562432013,-500.0,0.00044383,60]
[332835159,1721562432049,-631.09,0.00044383,60]
[332835160,1721562432082,-555.58,0.00044383,60]
[332835161,1721562432114,-500.0,0.00044383,60]
[332835162,1721562432147,-500.0,0.00044383,60]
[332835163,1721562432179,-500.0,0.00044383,60]
[332835164,1721562432213,-774.16,0.00044383,60]
[332835165,1721562432246,-631.09,0.00044383,60]
[332835166,1721562432279,-1597.81,0.00044383,60]
[332835167,1721562432312,-500.0,0.00044383,60]
[332835168,1721562432344,-962.17,0.00044383,60]
[332835169,1721562432378,-500.0,0.00044383,60]
[332835170,1721562432410,-500.0,0.00044383,60]
[332835171,1721562432443,-500.0,0.00044383,60]
[332835172,1721562432476,-500.0,0.00044383,60]
[332835173,1721562432508,-500.0,0.00044383,60]
[332835174,1721562432542,-500.0,0.00044383,60]
[332835175,1721562432576,-500.0,0.00044383,60]
[332835176,1721562432609,-767.96,0.00044383,60]
[332835177,1721562432641,-500.0,0.00044383,60]
[332835178,1721562432675,-500.0,0.00044383,60]
[332835179,1721562432708,-528.85,0.00044383,60]
[332835180,1721562432740,-500.0,0.00044383,60]
[332835181,1721562432772,-500.0,0.00044383,60]
[332835182,1721562432803,-500.0,0.00044383,60]
[332835183,1721562432836,-500.0,0.00044383,60]
[332835184,1721562432871,-609.59,0.00044383,60]
[332835185,1721562432901,-500.0,0.00044383,60]
[332835186,1721562432933,-658.66,0.00044383,60]
[332835187,1721562432967,-1294.17,0.00044383,60]
[332835188,1721562433001,-918.46,0.00044383,60]
[332835189,1721562433040,-613.96,0.00044383,60]
[332835190,1721562433075,-575.24,0.00044383,60]
[332835191,1721562433108,-500.0,0.00044383,60]
[332835192,1721562433143,-1861.87,0.00044383,60]
[332835193,1721562433176,-744.63,0.00044383,60]
[332835194,1721562433208,-599.7,0.00044383,60]
[332835195,1721562433240,-500.0,0.00044383,60]
[332835196,1721562433274,-500.0,0.00044383,60]
[332835197,1721562433305,-451.51293852,0.00044383,60]
[332835198,1721562433339,-714.25,0.00044383,60]
[332835199,1721562433368,-996.46,0.00044383,60]
[332835200,1721562433398,-500.0,0.00044383,60]
[332835201,1721562433428,-500.0,0.00044383,60]
[332835202,1721562433658,-500.0,0.00044383,60]
[332835203,1721562433691,-500.0,0.00044383,60]
[332835204,1721562433723,-1084.78,0.00044383,60]
[332835205,1721562433755,-500.0,0.00044383,60]
[332835206,1721562433786,-2388.81,0.00044383,60]
[332835207,1721562433818,-500.0,0.00044383,60]
[332835208,1721562433851,-598.93,0.00044383,60]
[332835209,1721562433882,-500.0,0.00044383,60]
[332835210,1721562433916,-500.0,0.00044383,60]
[332835211,1721562433952,-1303.3,0.00044383,60]
[332835212,1721562433986,-500.0,0.00044383,60]
[332835213,1721562434019,-500.0,0.00044383,60]
[332835214,1721562434056,-500.0,0.00044383,60]
[332835215,1721562434088,-788.43,0.00044383,60]
[332835216,1721562434122,-500.0,0.00044383,60]
[332835217,1721562434155,-746.44,0.00044383,60]
[332835218,1721562434188,-1276.61,0.00044383,60]
[332835219,1721562434221,-558.18,0.00044383,60]
[332835220,1721562434255,-670.72,0.00044383,60]
[332835221,1721562434288,-542.49,0.00044383,60]
[332835222,1721562434321,-500.0,0.00044383,60]
[332835223,1721562434353,-562.88,0.00044383,60]
[332835224,1721562434385,-500.0,0.00044383,60]
[332835225,1721562434416,-500.0,0.00044383,60]
[332835226,1721562434447,-500.0,0.00044383,60]
[332835227,1721562434479,-500.0,0.00044383,60]
[332835228,1721562434510,-500.0,0.00044383,60]
[332835229,1721562434543,-500.0,0.00044383,60]
[332835230,1721562434576,-500.0,0.00044383,60]
[332835231,1721562434607,-500.0,0.00044383,60]
[332835232,1721562434639,-500.0,0.00044383,60]
[332835233,1721562434669,-500.0,0.00044383,60]
[332835234,1721562434701,-592.17,0.00044383,60]
[332835235,1721562434733,-500.0,0.00044383,60]
[332835236,1721562434766,-500.0,0.00044383,60]
[332835237,1721562434798,-500.0,0.00044383,60]
[332835238,1721562434829,-500.0,0.00044383,60]
[332835239,1721562434862,-1623.76,0.00044383,60]
[332835240,1721562434896,-905.81,0.00044383,60]
[332835241,1721562434931,-500.0,0.00044383,60]
[332835242,1721562434965,-504.77105437,0.00044383,60]
[332835243,1721562434998,-500.0,0.00044383,60]
[332835244,1721562435034,-500.0,0.00044383,60]
[332835245,1721562435072,-500.0,0.00044383,60]
[332835246,1721562435111,-500.0,0.00044383,60]
[332835247,1721562435150,-500.0,0.00044383,60]
[332835248,1721562435184,-500.0,0.00044383,60]
[332835249,1721562435220,-598.73,0.00044383,60]
[332835250,1721562435255,-500.0,0.00044383,60]
[332835251,1721562435289,-912.84,0.00044383,60]
[332835252,1721562435323,-500.0,0.00044383,60]
[332835253,1721562435357,-339.74370466,0.00044383,60]
[332835254,1721562435391,-500.0,0.00044383,60]
[332835255,1721562435427,-500.0,0.00044383,60]
[332835256,1721562435462,-500.0,0.00044383,60]
[332835257,1721562435498,-500.0,0.00044383,60]
[332835258,1721562435535,-500.0,0.00044383,60]
[332835259,1721562435572,-500.0,0.00044383,60]
[332835260,1721562435608,-500.0,0.00044383,60]
[332835261,1721562435644,-500.0,0.00044383,60]
[332835262,1721562435680,-500.0,0.00044383,60]
[332835263,1721562435716,-500.0,0.00044383,60]
[332835264,1721562435752,-500.0,0.00044383,60]
[332835265,1721562435787,-1434.64,0.00044383,60]
[332835266,1721562435821,-691.27,0.00044383,60]
[332835267,1721562435855,-500.0,0.00044383,60]
[332835268,1721562435889,-500.0,0.00044383,60]
[332835269,1721562435924,-500.0,0.00044383,60]
[332835270,1721562435960,-500.0,0.00044383,60]
[332835271,1721562435995,-500.0,0.00044383,60]
[332835272,1721562436032,-500.0,0.00044383,60]
[332835273,1721562436067,-764.64,0.00044383,60]
[332835274,1721562436101,-406.70458646,0.00044383,60]
[332835275,1721562436138,-545.67,0.00044383,60]
[332835276,1721562436174,-500.0,0.00044383,60]
[332835277,1721562436209,-500.0,0.00044383,60]
[332835278,1721562436243,-217.73926398,0.00044383,60]
[332835279,1721562436280,-500.0,0.00044383,60]
[332835280,1721562436315,-500.0,0.00044383,60]
[332835281,1721562436350,-500.0,0.00044383,60]
[332835282,1721562436383,-548.74,0.00044383,60]
[332835283,1721562436416,-500.0,0.00044383,60]
[332835284,1721562436451,-500.0,0.00044383,60]
[332835285,1721562436485,-1666.69,0.00044383,60]
[332835286,1721562436518,-1260.61,0.00044383,60]
[332835287,1721562436554,-500.0,0.00044383,60]
[332835288,1721562436587,-500.0,0.00044383,60]
[332835289,1721562436621,-500.0,0.00044383,60]
[332835290,1721562436656,-500.0,0.00044383,60]
[332835291,1721562436691,-500.0,0.00044383,60]
[332835292,1721562436730,-555.93,0.00044383,60]
[332835293,1721562436765,-502.97953192,0.00044383,60]
[332835294,1721562436802,-500.0,0.00044383,60]
[332835295,1721562436838,-500.0,0.00044383,60]
[332835296,1721562436873,-841.26,0.00044383,60]
[332835297,1721562436909,-500.0,0.00044383,60]
[332835298,1721562436943,-556.17,0.00044383,60]
[332835299,1721562436982,-500.0,0.00044383,60]
[332835300,1721562437017,-583.12,0.00044383,60]
[332835301,1721562437052,-611.71,0.00044383,60]
[332835302,1721562437086,-500.0,0.00044383,60]
[332835303,1721562437120,-860.69,0.00044383,60]
[332835304,1721562437155,-500.0,0.00044383,60]
[332835305,1721562437191,-533.62242696,0.00044383,60]
[332835306,1721562437424,-500.0,0.00044383,30]
[332835307,1721562437460,-744.21,0.00044383,60]
[332835308,1721562437495,-537.23,0.00044383,60]
[332835309,1721562437532,-500.0,0.00044383,60]
[332835310,1721562437571,-500.0,0.00044383,60]
[332835311,1721562437606,-500.0,0.00044383,60]
[332835312,1721562437642,-500.0,0.00044383,60]
[332835313,1721562437676,-907.17,0.00044383,60]
[332835314,1721562437713,-500.0,0.00044383,60]
[332835315,1721562437747,-500.0,0.00044383,60]
[332835316,1721562437782,-919.51,0.00044383,60]
[332835317,1721562437818,-500.0,0.00044383,60]
[332835318,1721562437852,-500.0,0.00044383,60]
[332835319,1721562437889,-500.0,0.00044383,60]
[332835320,1721562437924,-500.0,0.00044383,60]
[332835321,1721562437961,-500.0,0.00044383,60]
[332835322,1721562437999,-500.0,0.00044383,60]
[332835323,1721562438037,-500.0,0.00044383,60]
[332835324,1721562438076,-505.66192965,0.00044383,60]
[332835325,1721562438112,-929.49,0.00044383,60]
[332835326,1721562438148,-500.0,0.00044383,60]
[332835327,1721562438183,-757.82,0.00044383,60]
[332835328,1721562438222,-500.0,0.00044383,60]
[332835329,1721562438256,-500.0,0.00044383,60]
[332835330,1721562438293,-500.0,0.00044383,60]
[332835331,1721562438327,-500.0,0.00044383,60]
[332835332,1721562438361,-598.89628058,0.00044383,60]
[332835333,1721562438394,-500.0,0.00044383,60]
[332835334,1721562438428,-500.0,0.00044383,60]
[332835335,1721562438462,-770.43,0.00044383,60]
[332835336,1721562438496,-500.0,0.00044383,60]
[332835337,1721562438530,-991.31,0.00044383,60]
[332835338,1721562438563,-500.0,0.00044383,60]
[332835339,1721562438597,-500.0,0.00044383,60]
[332835340,1721562438631,-995.47,0.00044383,60]
[332835341,1721562438665,-1684.14,0.00044383,60]
[332835342,1721562438701,-500.0,0.00044383,60]
[332835343,1721562438736,-500.0,0.00044383,60]
[332835344,1721562438770,-794.71,0.00044383,60]
[332835345,1721562438803,-504.81699319,0.00044383,60]
[332835346,1721562438836,-500.0,0.00044383,60]
[332835347,1721562438869,-500.0,0.00044383,60]
[332835348,1721562438905,-500.0,0.00044383,60]
[332835349,1721562438941,-500.0,0.00044383,60]
[332835350,1721562438977,-500.0,0.00044383,60]
[332835351,1721562439017,-756.47,0.00044383,60]
[332835352,1721562439056,-500.0,0.00044383,60]
[332835353,1721562439092,-500.0,0.00044383,60]
[332835354,1721562439129,-1355.1,0.00044383,60]
[332835355,1721562439164,-500.0,0.00044383,60]
[332835356,1721562439199,-500.0,0.00044383,60]
[332835357,1721562439234,-500.0,0.00044383,60]
[332835358,1721562439269,-500.0,0.00044383,60]
[332835359,1721562439306,-500.0,0.00044383,60]
[332835360,1721562439342,-500.0,0.00044383,60]
[332835361,1721562439378,-1476.27,0.00044383,60]
[332835362,1721562439414,-646.14,0.00044383,60]
[332835363,1721562439449,-500.0,0.00044383,60]